[Event "*** Titled Tuesday Blitz"]
[Site "Chess.com"]
[Date "2019.01.01"]
[Round "6"]
[White "Diwi89"]
[Black "afgano29"]
[Result "1-0"]
[WhiteElo "2791"]
[BlackElo "2649"]
[TimeControl "180+2"]
[EndTime "14:24:01 PST"]
[Termination "Diwi89 won by resignation"]

1. e4 {[%clk 0:02:59.2]} 1... e6 {[%clk 0:02:59.8]} 2. Nf3 {[%clk 0:02:57.7]}
2... d5 {[%clk 0:03:00.5]} 3. Nc3 {[%clk 0:02:58.5]} 3... Nf6 {[%clk 0:02:59.4]}
4. e5 {[%clk 0:02:58.8]} 4... Nfd7 {[%clk 0:03:00.8]} 5. d4 {[%clk 0:02:59.1]}
5... c5 {[%clk 0:03:01.9]} 6. dxc5 {[%clk 0:02:59.4]} 6... Nc6 {[%clk
0:03:03.4]} 7. Bf4 {[%clk 0:02:59.7]} 7... Bxc5 {[%clk 0:03:04.3]} 8. Bd3 {[%clk
0:02:58.7]} 8... f6 {[%clk 0:03:01.4]} 9. exf6 {[%clk 0:02:57.8]} 9... Nxf6
{[%clk 0:03:02.2]} 10. O-O {[%clk 0:02:57.7]} 10... O-O {[%clk 0:03:02.5]} 11.
Ne5 {[%clk 0:02:58.6]} 11... Bd7 {[%clk 0:02:51.4]} 12. Qe2 {[%clk 0:02:56.7]}
12... Rc8 {[%clk 0:02:46.7]} 13. Rae1 {[%clk 0:02:49.4]} 13... Nd4 {[%clk
0:02:41.8]} 14. Qd2 {[%clk 0:02:46.1]} 14... Be8 {[%clk 0:02:22.1]} 15. Be3
{[%clk 0:02:35.4]} 15... Qb6 {[%clk 0:02:09.8]} 16. Nd1 {[%clk 0:02:18.6]} 16...
Nc6 {[%clk 0:02:01.6]} 17. Bxc5 {[%clk 0:02:18.1]} 17... Qxc5 {[%clk 0:02:03.5]}
18. Nxc6 {[%clk 0:02:18.2]} 18... Rxc6 {[%clk 0:01:56.4]} 19. c3 {[%clk
0:02:19.4]} 19... Qd6 {[%clk 0:01:54]} 20. Bc2 {[%clk 0:02:12.8]} 20... e5
{[%clk 0:01:46]} 21. Ne3 {[%clk 0:02:12]} 21... Bd7 {[%clk 0:00:57.6]} 22. Ba4
{[%clk 0:02:11.5]} 22... Rc7 {[%clk 0:00:54.8]} 23. Bb3 {[%clk 0:02:12.5]} 23...
Be6 {[%clk 0:00:53.1]} 24. Nc4 {[%clk 0:02:12.9]} 24... Rxc4 {[%clk 0:00:48.1]}
25. Bxc4 {[%clk 0:02:13.4]} 25... e4 {[%clk 0:00:44.1]} 26. Be2 {[%clk
0:02:14.1]} 26... Nd7 {[%clk 0:00:37.4]} 27. Rd1 {[%clk 0:02:07.6]} 27... Ne5
{[%clk 0:00:37.6]} 28. Qe3 {[%clk 0:02:08.1]} 28... Qe7 {[%clk 0:00:36.3]} 29.
Qxa7 {[%clk 0:01:59.7]} 29... Bg4 {[%clk 0:00:30.1]} 30. Bxg4 {[%clk 0:01:50.4]}
30... Nxg4 {[%clk 0:00:30.6]} 31. Qd4 {[%clk 0:01:49.5]} 31... Qh4 {[%clk
0:00:24.3]} 32. Qxd5+ {[%clk 0:01:50.2]} 32... Kh8 {[%clk 0:00:24.8]} 33. Qd6
{[%clk 0:01:51.1]} 1-0

[Event "*** Titled Tuesday Blitz"]
[Site "Chess.com"]
[Date "2019.01.01"]
[Round "6"]
[White "BillCoe"]
[Black "novocane"]
[Result "1/2-1/2"]
[WhiteElo "1988"]
[BlackElo "2128"]
[TimeControl "180+2"]
[EndTime "14:24:05 PST"]
[Termination "Game drawn by repetition"]

1. e4 {[%clk 0:03:01.9]} 1... c5 {[%clk 0:03:00.7]} 2. Nf3 {[%clk 0:03:02.2]}
2... Nc6 {[%clk 0:03:02.2]} 3. Bb5 {[%clk 0:03:01.6]} 3... Nf6 {[%clk
0:03:03.9]} 4. d3 {[%clk 0:03:00.1]} 4... Qa5+ {[%clk 0:03:04.7]} 5. Nc3 {[%clk
0:02:59.1]} 5... Nd4 {[%clk 0:03:05.9]} 6. Bc4 {[%clk 0:02:42.8]} 6... b5 {[%clk
0:03:02.1]} 7. Bb3 {[%clk 0:02:37.3]} 7... Nxb3 {[%clk 0:03:02.5]} 8. cxb3
{[%clk 0:02:35.2]} 8... e6 {[%clk 0:03:01.4]} 9. O-O {[%clk 0:02:34.9]} 9... Be7
{[%clk 0:03:01.2]} 10. h3 {[%clk 0:02:24.7]} 10... d6 {[%clk 0:02:53.6]} 11. Be3
{[%clk 0:02:25.3]} 11... Bb7 {[%clk 0:02:46.5]} 12. e5 {[%clk 0:02:18.8]} 12...
dxe5 {[%clk 0:02:36.2]} 13. Nxe5 {[%clk 0:02:14.8]} 13... O-O {[%clk 0:02:33.7]}
14. Ng4 {[%clk 0:02:12.5]} 14... Rfd8 {[%clk 0:02:08.8]} 15. Nxf6+ {[%clk
0:02:11.5]} 15... Bxf6 {[%clk 0:02:08.9]} 16. Bxc5 {[%clk 0:02:04.4]} 16... Bxc3
{[%clk 0:02:04.8]} 17. bxc3 {[%clk 0:02:02.5]} 17... Qxc3 {[%clk 0:02:04.4]} 18.
d4 {[%clk 0:01:53.8]} 18... Rd5 {[%clk 0:00:58.2]} 19. Rc1 {[%clk 0:01:46]}
19... Rg5 {[%clk 0:00:40.2]} 20. Rxc3 {[%clk 0:00:59]} 20... Rxg2+ {[%clk
0:00:39.3]} 21. Kh1 {[%clk 0:01:00]} 21... Rxf2+ {[%clk 0:00:39.2]} 22. Kg1
{[%clk 0:01:00.4]} 22... Rg2+ {[%clk 0:00:39.6]} 23. Kh1 {[%clk 0:01:01.3]}
23... Rf2+ {[%clk 0:00:40.8]} 24. Kg1 {[%clk 0:01:02.4]} 24... Rg2+ {[%clk
0:00:42]} 25. Kh1 {[%clk 0:01:03.5]} 25... Rf2+ {[%clk 0:00:40.7]} 1/2-1/2

[Event "*** Titled Tuesday Blitz"]
[Site "Chess.com"]
[Date "2019.01.01"]
[Round "6"]
[White "fmshawnrl123"]
[Black "Rainmond"]
[Result "1-0"]
[WhiteElo "2540"]
[BlackElo "2781"]
[TimeControl "180+2"]
[EndTime "14:24:10 PST"]
[Termination "fmshawnrl123 won by resignation"]

1. e4 {[%clk 0:03:01.9]} 1... c5 {[%clk 0:02:54.5]} 2. Nf3 {[%clk 0:03:02.3]}
2... d6 {[%clk 0:02:55.4]} 3. d4 {[%clk 0:03:03.3]} 3... cxd4 {[%clk 0:02:56.8]}
4. Qxd4 {[%clk 0:03:05.2]} 4... Nc6 {[%clk 0:02:55.7]} 5. Bb5 {[%clk 0:03:05.9]}
5... Bd7 {[%clk 0:02:55.5]} 6. Bxc6 {[%clk 0:03:07.4]} 6... Bxc6 {[%clk
0:02:56.8]} 7. Nc3 {[%clk 0:03:08.3]} 7... e6 {[%clk 0:02:58]} 8. Bg5 {[%clk
0:03:08.1]} 8... Nf6 {[%clk 0:02:55.8]} 9. O-O-O {[%clk 0:03:08.9]} 9... Be7
{[%clk 0:02:55.1]} 10. Qd3 {[%clk 0:03:10.4]} 10... h6 {[%clk 0:02:55.3]} 11.
Bd2 {[%clk 0:03:09.8]} 11... a6 {[%clk 0:02:52.8]} 12. Nd4 {[%clk 0:03:10.3]}
12... Bd7 {[%clk 0:02:51]} 13. f4 {[%clk 0:03:10.2]} 13... Rc8 {[%clk
0:02:52.1]} 14. e5 {[%clk 0:02:50.8]} 14... Ng4 {[%clk 0:02:52.6]} 15. Qg3
{[%clk 0:02:44.2]} 15... h5 {[%clk 0:02:50.5]} 16. h3 {[%clk 0:02:43.8]} 16...
Bh4 {[%clk 0:02:49.8]} 17. Qf3 {[%clk 0:02:33.2]} 17... dxe5 {[%clk 0:02:49.7]}
18. hxg4 {[%clk 0:02:29.7]} 18... exd4 {[%clk 0:02:49.8]} 19. Ne4 {[%clk
0:02:31]} 19... hxg4 {[%clk 0:02:45.5]} 20. Qxg4 {[%clk 0:02:28.1]} 20... e5
{[%clk 0:02:03.7]} 21. Qxg7 {[%clk 0:02:18.3]} 21... Rh5 {[%clk 0:01:48.4]} 22.
Nd6+ {[%clk 0:01:18.7]} 22... Ke7 {[%clk 0:01:48.6]} 23. Bb4 {[%clk 0:01:18.8]}
23... Be6 {[%clk 0:00:53.7]} 24. Nxf7+ {[%clk 0:01:08.3]} 24... Ke8 {[%clk
0:00:54]} 25. Qf8+ {[%clk 0:00:54.8]} 25... Kd7 {[%clk 0:00:53.5]} 26. Qd6+
{[%clk 0:00:56.3]} 26... Ke8 {[%clk 0:00:53.7]} 27. Qxe6+ {[%clk 0:00:57.8]} 1-0

[Event "*** Titled Tuesday Blitz"]
[Site "Chess.com"]
[Date "2019.01.01"]
[Round "6"]
[White "minnesotachessmaster"]
[Black "WorldChampionBulletChess"]
[Result "1/2-1/2"]
[WhiteElo "1958"]
[BlackElo "2089"]
[TimeControl "180+2"]
[EndTime "14:24:12 PST"]
[Termination "Game drawn by agreement"]

1. d4 {[%clk 0:03:01.9]} 1... Nf6 {[%clk 0:03:00.8]} 2. c4 {[%clk 0:03:02.3]}
2... e6 {[%clk 0:03:01.5]} 3. Nf3 {[%clk 0:03:02]} 3... b6 {[%clk 0:03:02.4]} 4.
Nc3 {[%clk 0:03:02]} 4... Bb7 {[%clk 0:03:02.6]} 5. e3 {[%clk 0:03:02.8]} 5...
Be7 {[%clk 0:03:00.5]} 6. Bd3 {[%clk 0:03:03.3]} 6... O-O {[%clk 0:03:00.6]} 7.
O-O {[%clk 0:03:03.5]} 7... c5 {[%clk 0:03:00.3]} 8. d5 {[%clk 0:02:58.1]} 8...
exd5 {[%clk 0:03:00]} 9. cxd5 {[%clk 0:02:58.9]} 9... Re8 {[%clk 0:02:53.8]} 10.
e4 {[%clk 0:02:56.7]} 10... d6 {[%clk 0:02:54.3]} 11. a4 {[%clk 0:02:52.6]}
11... Qc8 {[%clk 0:02:55.2]} 12. h3 {[%clk 0:02:36.5]} 12... Nbd7 {[%clk
0:02:52.8]} 13. b3 {[%clk 0:02:27.7]} 13... Bf8 {[%clk 0:02:53]} 14. Bb2 {[%clk
0:02:24.2]} 14... c4 {[%clk 0:02:44.1]} 15. Bxc4 {[%clk 0:02:17]} 15... Nxe4
{[%clk 0:02:43.2]} 16. Nxe4 {[%clk 0:02:15.7]} 16... Rxe4 {[%clk 0:02:45.1]} 17.
Bd3 {[%clk 0:02:08.3]} 17... Re8 {[%clk 0:02:38.7]} 18. Ng5 {[%clk 0:02:04.3]}
18... g6 {[%clk 0:02:36.8]} 19. Nxh7 {[%clk 0:01:51.7]} 19... Bg7 {[%clk
0:02:23]} 20. Bxg7 {[%clk 0:01:49.1]} 20... Kxg7 {[%clk 0:02:24.9]} 21. Ng5
{[%clk 0:01:49.4]} 21... Ne5 {[%clk 0:02:24.3]} 22. Be4 {[%clk 0:01:26.2]} 22...
Ba6 {[%clk 0:02:04]} 23. Re1 {[%clk 0:01:21.5]} 23... Qc3 {[%clk 0:02:03]} 24.
Rc1 {[%clk 0:01:12.5]} 24... Qb4 {[%clk 0:01:47.7]} 25. Nf3 {[%clk 0:00:53.2]}
25... Nxf3+ {[%clk 0:01:33.1]} 26. Bxf3 {[%clk 0:00:53.8]} 26... Rxe1+ {[%clk
0:01:32.3]} 27. Qxe1 {[%clk 0:00:54.6]} 27... Qxb3 {[%clk 0:01:31.4]} 28. Qe4
{[%clk 0:00:55.3]} 28... Rc8 {[%clk 0:01:11.5]} 29. Qd4+ {[%clk 0:00:54.9]}
29... Kh7 {[%clk 0:01:09.6]} 30. Re1 {[%clk 0:00:55.6]} 30... Qc3 {[%clk
0:01:06.9]} 31. Qh4+ {[%clk 0:00:54.4]} 31... Kg7 {[%clk 0:01:06.6]} 32. Re7
{[%clk 0:00:53.6]} 1/2-1/2

[Event "*** Titled Tuesday Blitz"]
[Site "Chess.com"]
[Date "2019.01.01"]
[Round "6"]
[White "Lion_DL"]
[Black "Saitama_Hero"]
[Result "0-1"]
[WhiteElo "2368"]
[BlackElo "2376"]
[TimeControl "180+2"]
[EndTime "14:24:13 PST"]
[Termination "Saitama_Hero won by resignation"]

1. e4 {[%clk 0:03:01.9]} 1... c5 {[%clk 0:03:01.9]} 2. Nf3 {[%clk 0:03:02.3]}
2... g6 {[%clk 0:03:01.8]} 3. c3 {[%clk 0:03:01.8]} 3... Bg7 {[%clk 0:03:02.7]}
4. g3 {[%clk 0:03:02.9]} 4... d5 {[%clk 0:03:02.3]} 5. e5 {[%clk 0:03:02.9]}
5... Nc6 {[%clk 0:03:01.9]} 6. d4 {[%clk 0:03:01.2]} 6... cxd4 {[%clk
0:03:03.8]} 7. cxd4 {[%clk 0:03:01.7]} 7... Bg4 {[%clk 0:03:05.2]} 8. Be2 {[%clk
0:02:54]} 8... Qb6 {[%clk 0:03:04.9]} 9. O-O {[%clk 0:02:50.6]} 9... e6 {[%clk
0:03:01.9]} 10. Be3 {[%clk 0:02:33.1]} 10... Nge7 {[%clk 0:02:42.9]} 11. Nc3
{[%clk 0:02:11.3]} 11... O-O {[%clk 0:02:40.6]} 12. Na4 {[%clk 0:02:05.6]} 12...
Qa5 {[%clk 0:02:30.2]} 13. b3 {[%clk 0:02:03]} 13... Nf5 {[%clk 0:02:28.6]} 14.
Rc1 {[%clk 0:01:51.3]} 14... Rac8 {[%clk 0:02:22.6]} 15. Rc5 {[%clk 0:01:38.6]}
15... Qd8 {[%clk 0:02:16.1]} 16. Qd2 {[%clk 0:01:39.9]} 16... b6 {[%clk
0:02:13.9]} 17. Rcc1 {[%clk 0:01:36.2]} 17... Qe7 {[%clk 0:02:10.5]} 18. Kg2
{[%clk 0:01:32.1]} 18... Rc7 {[%clk 0:02:09.6]} 19. Bb5 {[%clk 0:01:29.6]} 19...
Rfc8 {[%clk 0:02:07.6]} 20. Ba6 {[%clk 0:01:30.7]} 20... Bxf3+ {[%clk
0:02:04.8]} 21. Kxf3 {[%clk 0:01:31.6]} 21... Ncxd4+ {[%clk 0:02:03.7]} 22. Kg2
{[%clk 0:01:19.2]} 22... Rxc1 {[%clk 0:02:02.5]} 23. Bxd4 {[%clk 0:01:13.2]}
23... Rxf1 {[%clk 0:02:00.8]} 24. Bxc8 {[%clk 0:01:04.4]} 24... Rb1 {[%clk
0:01:59.9]} 25. Bb2 {[%clk 0:00:57.3]} 25... Qc7 {[%clk 0:01:56.2]} 26. Ba6
{[%clk 0:00:56]} 26... Bxe5 {[%clk 0:01:52.5]} 27. Bd3 {[%clk 0:00:46.2]} 27...
Bxb2 {[%clk 0:01:48.1]} 28. Bxb1 {[%clk 0:00:45.3]} 28... Bg7 {[%clk 0:01:39.9]}
29. Bxf5 {[%clk 0:00:41]} 29... gxf5 {[%clk 0:01:41.8]} 30. Nb2 {[%clk
0:00:41.3]} 30... Qc3 {[%clk 0:01:39.4]} 31. Qxc3 {[%clk 0:00:39.6]} 31... Bxc3
{[%clk 0:01:41.3]} 32. Nd3 {[%clk 0:00:41]} 32... e5 {[%clk 0:01:37.1]} 33. f4
{[%clk 0:00:38.4]} 33... e4 {[%clk 0:01:36.2]} 0-1

[Event "*** Titled Tuesday Blitz"]
[Site "Chess.com"]
[Date "2019.01.01"]
[Round "6"]
[White "LawrenceTrent"]
[Black "michaelq2d5"]
[Result "1-0"]
[WhiteElo "2541"]
[BlackElo "2732"]
[TimeControl "180+2"]
[EndTime "14:24:15 PST"]
[Termination "LawrenceTrent won by resignation"]

1. d4 {[%clk 0:03:01.9]} 1... d5 {[%clk 0:03:00.5]} 2. c4 {[%clk 0:02:59.3]}
2... dxc4 {[%clk 0:03:02.4]} 3. e3 {[%clk 0:02:57.3]} 3... Nf6 {[%clk
0:03:03.3]} 4. Bxc4 {[%clk 0:02:58.1]} 4... a6 {[%clk 0:03:04.7]} 5. Nf3 {[%clk
0:02:59.1]} 5... e6 {[%clk 0:03:06.2]} 6. O-O {[%clk 0:03:00]} 6... c5 {[%clk
0:03:06.2]} 7. b3 {[%clk 0:03:01.1]} 7... cxd4 {[%clk 0:03:06.5]} 8. exd4 {[%clk
0:02:56.1]} 8... b5 {[%clk 0:03:05.8]} 9. Be2 {[%clk 0:02:55.3]} 9... Bb7 {[%clk
0:03:07.4]} 10. Bb2 {[%clk 0:02:56.3]} 10... Be7 {[%clk 0:03:07.6]} 11. Nbd2
{[%clk 0:02:57.1]} 11... O-O {[%clk 0:03:08.9]} 12. a4 {[%clk 0:02:58.5]} 12...
bxa4 {[%clk 0:03:09.4]} 13. Rxa4 {[%clk 0:02:58.5]} 13... Nbd7 {[%clk
0:03:10.3]} 14. Qa1 {[%clk 0:02:55.1]} 14... Nb6 {[%clk 0:03:07.6]} 15. Ra2
{[%clk 0:02:52.7]} 15... Nfd5 {[%clk 0:02:44]} 16. Rc1 {[%clk 0:02:42]} 16...
Nb4 {[%clk 0:02:39.5]} 17. Ra5 {[%clk 0:02:42.5]} 17... Rc8 {[%clk 0:02:32.3]}
18. Nc4 {[%clk 0:02:13.5]} 18... Be4 {[%clk 0:02:09.6]} 19. Rc5 {[%clk
0:01:20.6]} 19... N6d5 {[%clk 0:00:56.1]} 20. Rxc8 {[%clk 0:01:13.3]} 20... Qxc8
{[%clk 0:00:57.3]} 21. Nd6 {[%clk 0:00:59.4]} 21... Qxc1+ {[%clk 0:00:58.3]} 22.
Bxc1 {[%clk 0:00:58.3]} 22... Bxd6 {[%clk 0:00:59.9]} 23. g3 {[%clk 0:00:59.5]}
23... h6 {[%clk 0:00:56.8]} 24. Bd2 {[%clk 0:00:54.3]} 24... Rc8 {[%clk
0:00:51.4]} 25. Ne1 {[%clk 0:00:55.5]} 25... Nc2 {[%clk 0:00:39.2]} 26. Qxa6
{[%clk 0:00:52.9]} 26... Ne7 {[%clk 0:00:34.2]} 27. Qxd6 {[%clk 0:00:50.9]} 1-0

[Event "*** Titled Tuesday Blitz"]
[Site "Chess.com"]
[Date "2019.01.01"]
[Round "6"]
[White "gmcorrales"]
[Black "BlackBoarder"]
[Result "1-0"]
[WhiteElo "2757"]
[BlackElo "2562"]
[TimeControl "180+2"]
[EndTime "14:24:22 PST"]
[Termination "gmcorrales won by resignation"]

1. e4 {[%clk 0:03:01.9]} 1... e6 {[%clk 0:03:00.2]} 2. d4 {[%clk 0:02:59.2]}
2... d5 {[%clk 0:03:01.1]} 3. e5 {[%clk 0:02:45.8]} 3... c5 {[%clk 0:03:01.8]}
4. c3 {[%clk 0:02:46.9]} 4... Nc6 {[%clk 0:03:02.8]} 5. Nf3 {[%clk 0:02:47.9]}
5... Bd7 {[%clk 0:03:04.1]} 6. Bd3 {[%clk 0:02:46.6]} 6... Rc8 {[%clk
0:03:04.7]} 7. O-O {[%clk 0:02:47.8]} 7... cxd4 {[%clk 0:03:05.7]} 8. cxd4
{[%clk 0:02:48.5]} 8... Nb4 {[%clk 0:03:06.8]} 9. Nc3 {[%clk 0:02:46.8]} 9...
Nxd3 {[%clk 0:03:08.2]} 10. Qxd3 {[%clk 0:02:48]} 10... Ne7 {[%clk 0:03:09.8]}
11. Bg5 {[%clk 0:02:49.2]} 11... h6 {[%clk 0:03:10.5]} 12. Bh4 {[%clk
0:02:50.4]} 12... Qb6 {[%clk 0:03:07.9]} 13. Rfc1 {[%clk 0:02:47.5]} 13... Nf5
{[%clk 0:03:08.4]} 14. Rc2 {[%clk 0:02:35.7]} 14... Nxh4 {[%clk 0:03:02.2]} 15.
Nxh4 {[%clk 0:02:36.7]} 15... Be7 {[%clk 0:03:01.1]} 16. Nf3 {[%clk 0:02:37.6]}
16... O-O {[%clk 0:03:01.5]} 17. Rac1 {[%clk 0:02:39.4]} 17... a5 {[%clk
0:02:37.9]} 18. h4 {[%clk 0:02:40]} 18... Rfd8 {[%clk 0:02:20.4]} 19. h5 {[%clk
0:02:39.4]} 19... Rc4 {[%clk 0:02:14.8]} 20. b3 {[%clk 0:02:40.1]} 20... Rcc8
{[%clk 0:02:07.7]} 21. Na4 {[%clk 0:02:40.9]} 21... Qa7 {[%clk 0:01:57.1]} 22.
Nc5 {[%clk 0:02:41.3]} 22... Be8 {[%clk 0:01:50.5]} 23. g4 {[%clk 0:02:35.8]}
23... b6 {[%clk 0:01:47.7]} 24. Na4 {[%clk 0:02:36.6]} 24... Rxc2 {[%clk
0:01:39.9]} 25. Qxc2 {[%clk 0:02:36.7]} 25... Bxa4 {[%clk 0:01:39.5]} 26. bxa4
{[%clk 0:02:37.6]} 26... Ba3 {[%clk 0:01:34.7]} 27. Qc7 {[%clk 0:02:29.2]} 27...
Qxc7 {[%clk 0:01:29.5]} 28. Rxc7 {[%clk 0:02:27.7]} 28... Rb8 {[%clk 0:01:18.5]}
29. Kf1 {[%clk 0:02:22.7]} 29... b5 {[%clk 0:01:17.2]} 30. axb5 {[%clk
0:02:23.7]} 30... Rxb5 {[%clk 0:01:19.1]} 31. g5 {[%clk 0:02:25.2]} 31... Bf8
{[%clk 0:01:07.4]} 32. g6 {[%clk 0:02:25.2]} 32... fxg6 {[%clk 0:01:02.5]} 33.
hxg6 {[%clk 0:02:25.7]} 33... Rb2 {[%clk 0:00:58.1]} 34. Rc6 {[%clk 0:02:24.9]}
34... Rxa2 {[%clk 0:00:49.6]} 35. Rxe6 {[%clk 0:02:24.3]} 35... a4 {[%clk
0:00:45.4]} 36. Ra6 {[%clk 0:02:24.3]} 36... a3 {[%clk 0:00:36.4]} 37. e6 {[%clk
0:02:25.3]} 37... Ra1+ {[%clk 0:00:32.2]} 38. Kg2 {[%clk 0:02:25.6]} 38... Rd1
{[%clk 0:00:20.6]} 39. Ra8 {[%clk 0:02:20.7]} 39... a2 {[%clk 0:00:09.5]} 40. e7
{[%clk 0:02:19.3]} 1-0

[Event "*** Titled Tuesday Blitz"]
[Site "Chess.com"]
[Date "2019.01.01"]
[Round "6"]
[White "MFguimaraes"]
[Black "jmduque"]
[Result "1-0"]
[WhiteElo "2321"]
[BlackElo "2210"]
[TimeControl "180+2"]
[EndTime "14:24:22 PST"]
[Termination "MFguimaraes won by resignation"]

1. e4 {[%clk 0:00:45.5]} 1... e5 {[%clk 0:01:43.3]} 2. Nf3 {[%clk 0:00:45.4]}
2... Nc6 {[%clk 0:01:43.5]} 3. Bc4 {[%clk 0:00:46.4]} 3... Nf6 {[%clk
0:01:44.5]} 4. Ng5 {[%clk 0:00:47.6]} 4... d5 {[%clk 0:01:45.2]} 5. exd5 {[%clk
0:00:49.5]} 5... Na5 {[%clk 0:01:47.1]} 6. Bb5+ {[%clk 0:00:50.9]} 6... c6
{[%clk 0:01:49]} 7. dxc6 {[%clk 0:00:52.5]} 7... bxc6 {[%clk 0:01:50.9]} 8. Qf3
{[%clk 0:00:53.9]} 8... Be7 {[%clk 0:01:49]} 9. Bxc6+ {[%clk 0:00:54.5]} 9...
Nxc6 {[%clk 0:01:50]} 10. Qxc6+ {[%clk 0:00:56.4]} 10... Bd7 {[%clk 0:01:51.2]}
11. Qa6 {[%clk 0:00:54.2]} 11... Rc8 {[%clk 0:01:48.4]} 12. Nc3 {[%clk
0:00:54.3]} 12... h6 {[%clk 0:01:48]} 13. Nf3 {[%clk 0:00:53.9]} 13... O-O
{[%clk 0:01:47.1]} 14. O-O {[%clk 0:00:49.3]} 14... Rc6 {[%clk 0:01:41.4]} 15.
Qe2 {[%clk 0:00:47.2]} 15... Qb8 {[%clk 0:01:37.2]} 16. Nxe5 {[%clk 0:00:45.2]}
16... Bf5 {[%clk 0:01:33.2]} 17. d4 {[%clk 0:00:45.2]} 17... Re6 {[%clk
0:01:30.9]} 18. b3 {[%clk 0:00:37.7]} 18... Ng4 {[%clk 0:01:31.6]} 19. Qf3
{[%clk 0:00:29.2]} 19... Rf6 {[%clk 0:01:17.4]} 20. Nxg4 {[%clk 0:00:26.9]} 1-0

[Event "*** Titled Tuesday Blitz"]
[Site "Chess.com"]
[Date "2019.01.01"]
[Round "6"]
[White "tigra"]
[Black "MehdiHosseinipour"]
[Result "1-0"]
[WhiteElo "2755"]
[BlackElo "2567"]
[TimeControl "180+2"]
[EndTime "14:24:31 PST"]
[Termination "tigra won by resignation"]

1. e4 {[%clk 0:03:01.9]} 1... c5 {[%clk 0:03:01]} 2. Nc3 {[%clk 0:03:02.3]} 2...
Nc6 {[%clk 0:03:02]} 3. Nge2 {[%clk 0:03:00.2]} 3... d6 {[%clk 0:03:01.2]} 4. d4
{[%clk 0:03:00.9]} 4... cxd4 {[%clk 0:03:02.6]} 5. Nxd4 {[%clk 0:03:02.8]} 5...
Nf6 {[%clk 0:03:04.2]} 6. Bg5 {[%clk 0:03:03.2]} 6... e6 {[%clk 0:03:05.3]} 7.
Qd2 {[%clk 0:03:01.3]} 7... a6 {[%clk 0:03:06.8]} 8. O-O-O {[%clk 0:03:01.2]}
8... Bd7 {[%clk 0:03:08]} 9. f3 {[%clk 0:02:59.3]} 9... b5 {[%clk 0:03:08.5]}
10. Kb1 {[%clk 0:02:56.2]} 10... Qb6 {[%clk 0:03:05.9]} 11. Be3 {[%clk 0:02:55]}
11... Qc7 {[%clk 0:03:07]} 12. g4 {[%clk 0:02:52.7]} 12... Nxd4 {[%clk
0:02:30.8]} 13. Bxd4 {[%clk 0:02:52.4]} 13... Bc6 {[%clk 0:02:32.3]} 14. g5
{[%clk 0:02:50.2]} 14... Nd7 {[%clk 0:02:33.6]} 15. h4 {[%clk 0:02:50.6]} 15...
b4 {[%clk 0:02:26.7]} 16. Ne2 {[%clk 0:02:51.2]} 16... d5 {[%clk 0:02:28.2]} 17.
Bg2 {[%clk 0:02:48.9]} 17... dxe4 {[%clk 0:02:08.7]} 18. fxe4 {[%clk 0:02:50.8]}
18... Ne5 {[%clk 0:02:08.9]} 19. b3 {[%clk 0:02:38]} 19... Bd6 {[%clk
0:02:02.3]} 20. Bb6 {[%clk 0:02:33.9]} 20... Qxb6 {[%clk 0:01:59.1]} 21. Qxd6
{[%clk 0:02:34.6]} 21... Qb8 {[%clk 0:01:50]} 22. Qc5 {[%clk 0:02:33.8]} 22...
Qb5 {[%clk 0:01:47.9]} 23. Qxb5 {[%clk 0:02:32.3]} 23... Bxb5 {[%clk 0:01:48.2]}
24. Nd4 {[%clk 0:02:32.4]} 24... Bd7 {[%clk 0:01:46.8]} 25. c3 {[%clk
0:02:32.4]} 25... bxc3 {[%clk 0:01:44.4]} 26. Rc1 {[%clk 0:02:31.9]} 26... Ke7
{[%clk 0:01:37.8]} 27. Rxc3 {[%clk 0:02:31.4]} 27... h6 {[%clk 0:01:39.2]} 28.
Nf3 {[%clk 0:02:25.3]} 28... Nxf3 {[%clk 0:01:35.5]} 29. Bxf3 {[%clk 0:02:26.3]}
29... hxg5 {[%clk 0:01:36.4]} 30. hxg5 {[%clk 0:02:28.2]} 30... Rxh1+ {[%clk
0:01:37.5]} 31. Bxh1 {[%clk 0:02:30.1]} 31... Rh8 {[%clk 0:01:38.8]} 32. Bf3
{[%clk 0:02:31.6]} 32... Rh3 {[%clk 0:01:36.1]} 33. Kb2 {[%clk 0:02:28.6]} 33...
Rg3 {[%clk 0:01:35.9]} 34. Be2 {[%clk 0:02:29.5]} 34... Rxg5 {[%clk 0:01:21.6]}
35. Bxa6 {[%clk 0:02:29.1]} 35... Re5 {[%clk 0:01:10.8]} 36. Bb7 {[%clk
0:02:24.5]} 36... f5 {[%clk 0:01:06]} 37. exf5 {[%clk 0:02:23.5]} 37... exf5
{[%clk 0:01:07.9]} 38. a4 {[%clk 0:02:24.1]} 38... g5 {[%clk 0:01:06.1]} 39. Ka3
{[%clk 0:02:24.5]} 39... f4 {[%clk 0:01:02.7]} 40. b4 {[%clk 0:02:16.1]} 40...
g4 {[%clk 0:00:57.3]} 41. b5 {[%clk 0:02:13.5]} 41... Re3 {[%clk 0:00:36]} 42.
Kb4 {[%clk 0:02:13.3]} 42... Re4+ {[%clk 0:00:24.2]} 43. Bxe4 {[%clk 0:02:12.1]}
1-0